[Event "January 9 Late 2024"]
[Site "https://www.chess.com"]
[Date "2024.01.09"]
[Round "10"]
[White "Kornyukov, Alexey"]
[Black "Ferreira, Vitor Hugo Vieira"]
[Result "0-1"]
[Board "73"]
[TimeControl "180+1"]
[WhiteFideId "4150457"]
[BlackFideId "2119765"]
[WhiteElo "2307"]
[BlackElo "2547"]
[WhiteTeam "RUS"]
[BlackTeam "BRA"]
[WhiteClock "0:00:00"]
[BlackClock "0:00:02"]

1. d4 {[%clk 0:03:00]}  d5 {[%clk 0:02:59]} 2. c4 {[%clk 0:03:00]}  c6 {[%clk 0:03:00]} 3. Nf3 {[%clk 0:03:00]}  Nf6 {[%clk 0:03:00]} 4. e3 {[%clk 0:03:00]}  e6 {[%clk 0:02:58]} 5. Nbd2 {[%clk 0:03:00]}  Bd6 {[%clk 0:02:57]} 6. Bd3 {[%clk 0:02:59]}  O-O {[%clk 0:02:55]} 7. O-O {[%clk 0:02:54]}  Nbd7 {[%clk 0:02:52]} 8. e4 {[%clk 0:02:44]}  e5 {[%clk 0:02:50]} 9. cxd5 {[%clk 0:02:39]}  cxd5 {[%clk 0:02:49]} 10. Re1 {[%clk 0:02:32]}  dxe4 {[%clk 0:02:30]} 11. Nxe4 {[%clk 0:02:29]}  Nxe4 {[%clk 0:02:31]} 12. Bxe4 {[%clk 0:02:27]}  exd4 {[%clk 0:02:24]} 13. Nxd4 {[%clk 0:02:17]}  Nc5 {[%clk 0:02:16]} 14. Bf3 {[%clk 0:02:02]}  Qf6 {[%clk 0:01:50]} 15. Nb5 {[%clk 0:01:33]}  Be5 {[%clk 0:01:38]} 16. Qd5 {[%clk 0:00:59]}  Nd7 {[%clk 0:01:25]} 17. Nc3 {[%clk 0:00:16]}  a6 {[%clk 0:01:12]} 18. Be3 {[%clk 0:00:14]}  Rb8 {[%clk 0:01:09]} 19. Rac1 {[%clk 0:00:14]}  b5 {[%clk 0:01:08]} 20. Ne4 {[%clk 0:00:14]}  Qg6 {[%clk 0:01:01]} 21. Nc5 {[%clk 0:00:10]}  Nxc5 {[%clk 0:00:37]} 22. Bxc5 {[%clk 0:00:09]}  Re8 {[%clk 0:00:28]} 23. Rxe5 {[%clk 0:00:08]}  Be6 {[%clk 0:00:28]} 24. Qe4 {[%clk 0:00:07]}  Qh6 {[%clk 0:00:25]} 25. Re1 {[%clk 0:00:06]}  Rec8 {[%clk 0:00:21]} 26. b4 {[%clk 0:00:06]}  Qf6 {[%clk 0:00:20]} 27. a3 {[%clk 0:00:06]}  g6 {[%clk 0:00:21]} 28. h3 {[%clk 0:00:05]}  Bf5 {[%clk 0:00:19]} 29. Qe3 {[%clk 0:00:06]}  h5 {[%clk 0:00:17]} 30. Qf4 {[%clk 0:00:06]}  Qd8 {[%clk 0:00:13]} 31. Rxf5 {[%clk 0:00:05]}  gxf5 {[%clk 0:00:11]} 32. Qxf5 {[%clk 0:00:05]}  Qd2 {[%clk 0:00:06]} 33. Re4 {[%clk 0:00:05]}  Re8 {[%clk 0:00:05]} 34. Qg5+ {[%clk 0:00:04]}  Qxg5 {[%clk 0:00:04]} 35. Rd4 {[%clk 0:00:03]}  Re1+ {[%clk 0:00:03]} 36. Kh2 {[%clk 0:00:03]}  Qe5+ {[%clk 0:00:03]} 37. g3 {[%clk 0:00:04]}  Rc8 {[%clk 0:00:02]} 38. Rf4 {[%clk 0:00:02]}  Rxc5 {[%clk 0:00:02]} 39. bxc5 {[%clk 0:00:02]}  Qxc5 {[%clk 0:00:03]} 40. Be4 {[%clk 0:00:02]}  Rf1 {[%clk 0:00:02]} 41. Kg2 {[%clk 0:00:01]}  Rc1 {[%clk 0:00:02]} 42. Bf3 {[%clk 0:00:00]}  Rc4 {[%clk 0:00:02]} 0-1

[Event "January 9 Late 2024"]
[Site "https://www.chess.com"]
[Date "2024.01.09"]
[Round "10"]
[White "Avramidou, Anastasia"]
[Black "Dourerassou, Jonathan"]
[Result "0-1"]
[Board "74"]
[TimeControl "180+1"]
[WhiteFideId "4239873"]
[BlackFideId "628050"]
[WhiteElo "2517"]
[BlackElo "2781"]
[WhiteTeam "GRE"]
[BlackTeam "FRA"]
[WhiteClock "0:00:01"]
[BlackClock "0:00:42"]

1. Nf3 {[%clk 0:03:00]}  Nf6 {[%clk 0:02:59]} 2. c4 {[%clk 0:03:01]}  g6 {[%clk 0:02:59]} 3. Nc3 {[%clk 0:03:02]}  Bg7 {[%clk 0:03:00]} 4. e4 {[%clk 0:03:02]}  O-O {[%clk 0:03:00]} 5. d4 {[%clk 0:03:03]}  d6 {[%clk 0:03:01]} 6. h4 {[%clk 0:03:04]}  Nbd7 {[%clk 0:03:01]} 7. Be2 {[%clk 0:03:04]}  c5 {[%clk 0:03:00]} 8. d5 {[%clk 0:03:04]}  Re8 {[%clk 0:02:59]} 9. Bg5 {[%clk 0:03:04]}  a6 {[%clk 0:02:59]} 10. a4 {[%clk 0:03:03]}  e6 {[%clk 0:02:59]} 11. h5 {[%clk 0:03:01]}  exd5 {[%clk 0:02:59]} 12. exd5 {[%clk 0:03:01]}  Qb6 {[%clk 0:02:54]} 13. Qc2 {[%clk 0:02:13]}  Ne5 {[%clk 0:02:42]} 14. a5 {[%clk 0:01:59]}  Nxf3+ {[%clk 0:02:36]} 15. gxf3 {[%clk 0:01:59]}  Qc7 {[%clk 0:02:35]} 16. h6 {[%clk 0:01:40]}  Bf5 {[%clk 0:02:31]} 17. Qd2 {[%clk 0:01:40]}  Bh8 {[%clk 0:02:31]} 18. Kf1 {[%clk 0:01:38]}  Nd7 {[%clk 0:02:22]} 19. Kg2 {[%clk 0:01:35]}  Bd4 {[%clk 0:02:07]} 20. Be3 {[%clk 0:01:27]}  Bf6 {[%clk 0:02:03]} 21. Bf4 {[%clk 0:01:20]}  Ne5 {[%clk 0:02:01]} 22. Bg3 {[%clk 0:01:18]}  Re7 {[%clk 0:01:55]} 23. Ne4 {[%clk 0:01:13]}  Bh8 {[%clk 0:01:41]} 24. Bh4 {[%clk 0:01:11]}  Bxe4 {[%clk 0:01:39]} 25. fxe4 {[%clk 0:01:12]}  f6 {[%clk 0:01:37]} 26. f3 {[%clk 0:01:09]}  Rae8 {[%clk 0:01:35]} 27. Rae1 {[%clk 0:00:48]}  Rf7 {[%clk 0:01:35]} 28. f4 {[%clk 0:00:37]}  Nd7 {[%clk 0:01:32]} 29. Bg4 {[%clk 0:00:38]}  Nf8 {[%clk 0:01:25]} 30. Re2 {[%clk 0:00:34]}  Rfe7 {[%clk 0:01:21]} 31. Rhe1 {[%clk 0:00:33]}  b5 {[%clk 0:01:20]} 32. axb6 {[%clk 0:00:18]}  Qxb6 {[%clk 0:01:19]} 33. Bg3 {[%clk 0:00:18]}  Qb3 {[%clk 0:01:18]} 34. Qc3 {[%clk 0:00:11]}  Qb8 {[%clk 0:01:13]} 35. Qc2 {[%clk 0:00:11]}  Rb7 {[%clk 0:01:06]} 36. Bf3 {[%clk 0:00:10]}  Rb3 {[%clk 0:01:00]} 37. Bf2 {[%clk 0:00:07]}  Qb4 {[%clk 0:00:56]} 38. Bg3 {[%clk 0:00:05]}  a5 {[%clk 0:00:55]} 39. Kh3 {[%clk 0:00:05]}  a4 {[%clk 0:00:55]} 40. Kg2 {[%clk 0:00:04]}  Kf7 {[%clk 0:00:54]} 41. e5 {[%clk 0:00:04]}  fxe5 {[%clk 0:00:51]} 42. Rf1 {[%clk 0:00:02]}  e4 {[%clk 0:00:49]} 43. Bxe4 {[%clk 0:00:02]}  Rxb2 {[%clk 0:00:49]} 44. Qd1 {[%clk 0:00:01]}  Rxe4 {[%clk 0:00:47]} 45. Rxb2 {[%clk 0:00:01]}  Qxb2+ {[%clk 0:00:47]} 46. Rf2 {[%clk 0:00:02]}  Qd4 {[%clk 0:00:46]} 47. Qxa4 {[%clk 0:00:02]}  Qxc4 {[%clk 0:00:45]} 48. Qa7+ {[%clk 0:00:02]}  Re7 {[%clk 0:00:45]} 49. Qb8 {[%clk 0:00:03]}  Qxd5+ {[%clk 0:00:45]} 50. Kh2 {[%clk 0:00:04]}  Bd4 {[%clk 0:00:44]} 51. f5 {[%clk 0:00:02]}  Bxf2 {[%clk 0:00:43]} 52. fxg6+ {[%clk 0:00:01]}  Nxg6 {[%clk 0:00:42]} 0-1

[Event "January 9 Late 2024"]
[Site "https://www.chess.com"]
[Date "2024.01.09"]
[Round "10"]
[White "Hambleton, Aman"]
[Black "Urbina Perez, Juan Antonio"]
[Result "0-1"]
[Board "75"]
[TimeControl "180+1"]
[WhiteFideId "2606577"]
[BlackFideId "2217368"]
[WhiteElo "2691"]
[BlackElo "2517"]
[WhiteTeam "CAN"]
[BlackTeam "ESP"]
[WhiteClock "0:00:00"]
[BlackClock "0:00:53"]

1. e4 {[%clk 0:03:00]}  c6 {[%clk 0:02:57]} 2. Nf3 {[%clk 0:03:00]}  d5 {[%clk 0:02:54]} 3. d3 {[%clk 0:03:01]}  dxe4 {[%clk 0:02:53]} 4. dxe4 {[%clk 0:03:02]}  Qxd1+ {[%clk 0:02:53]} 5. Kxd1 {[%clk 0:03:03]}  g6 {[%clk 0:02:52]} 6. c3 {[%clk 0:03:02]}  Bh6 {[%clk 0:02:48]} 7. Nfd2 {[%clk 0:03:02]}  e5 {[%clk 0:02:43]} 8. a4 {[%clk 0:03:00]}  a5 {[%clk 0:02:40]} 9. Nc4 {[%clk 0:02:37]}  Nd7 {[%clk 0:02:32]} 10. Nd6+ {[%clk 0:02:38]}  Ke7 {[%clk 0:02:30]} 11. Nxc8+ {[%clk 0:02:39]}  Rxc8 {[%clk 0:02:30]} 12. Nd2 {[%clk 0:02:39]}  b6 {[%clk 0:02:24]} 13. Kc2 {[%clk 0:02:38]}  f6 {[%clk 0:02:24]} 14. b3 {[%clk 0:02:33]}  Nc5 {[%clk 0:02:20]} 15. Ba3 {[%clk 0:02:30]}  Ke6 {[%clk 0:02:14]} 16. Bc4+ {[%clk 0:02:09]}  Kd7 {[%clk 0:02:08]} 17. Rhd1 {[%clk 0:02:09]}  Bxd2 {[%clk 0:02:07]} 18. Rxd2+ {[%clk 0:02:09]}  Kc7 {[%clk 0:02:07]} 19. Bxc5 {[%clk 0:01:58]}  bxc5 {[%clk 0:02:07]} 20. Rad1 {[%clk 0:01:59]}  Nh6 {[%clk 0:02:04]} 21. Rd7+ {[%clk 0:01:50]}  Kb6 {[%clk 0:02:03]} 22. f3 {[%clk 0:00:59]}  Rc7 {[%clk 0:02:03]} 23. R7d6 {[%clk 0:00:54]}  Rf8 {[%clk 0:02:01]} 24. Re6 {[%clk 0:00:11]}  f5 {[%clk 0:01:45]} 25. Rxe5 {[%clk 0:00:10]}  fxe4 {[%clk 0:01:45]} 26. Rxe4 {[%clk 0:00:09]}  Nf5 {[%clk 0:01:45]} 27. Rd2 {[%clk 0:00:01]}  Re7 {[%clk 0:01:38]} 28. Rxe7 {[%clk 0:00:01]}  Nxe7 {[%clk 0:01:39]} 29. Re2 {[%clk 0:00:01]}  Nf5 {[%clk 0:01:38]} 30. f4 {[%clk 0:00:01]}  Rd8 {[%clk 0:01:37]} 31. g3 {[%clk 0:00:01]}  Nd6 {[%clk 0:01:33]} 32. Bd3 {[%clk 0:00:02]}  Rd7 {[%clk 0:01:32]} 33. Rd2 {[%clk 0:00:02]}  Ne8 {[%clk 0:01:22]} 34. Bc4 {[%clk 0:00:02]}  Rxd2+ {[%clk 0:01:23]} 35. Kxd2 {[%clk 0:00:02]}  Kc7 {[%clk 0:01:20]} 36. Bg8 {[%clk 0:00:02]}  Nf6 {[%clk 0:01:18]} 37. Bc4 {[%clk 0:00:02]}  Kd6 {[%clk 0:01:19]} 38. Ke2 {[%clk 0:00:02]}  Ne4 {[%clk 0:01:15]} 39. Ke3 {[%clk 0:00:02]}  Nxc3 {[%clk 0:01:14]} 40. g4 {[%clk 0:00:01]}  Nd5+ {[%clk 0:01:14]} 41. Ke4 {[%clk 0:00:01]}  Nf6+ {[%clk 0:01:12]} 42. Kf3 {[%clk 0:00:01]}  Nd5 {[%clk 0:01:10]} 43. g5 {[%clk 0:00:01]}  Ke6 {[%clk 0:01:06]} 44. h4 {[%clk 0:00:01]}  Kd6 {[%clk 0:01:06]} 45. Kg3 {[%clk 0:00:01]}  Ke7 {[%clk 0:01:03]} 46. Bd3 {[%clk 0:00:01]}  Ne3 {[%clk 0:01:00]} 47. Kf3 {[%clk 0:00:01]}  Nd5 {[%clk 0:00:53]} 48. f5 {[%clk 0:00:00]}  Kf7 {[%clk 0:00:53]} 0-1

[Event "January 9 Late 2024"]
[Site "https://www.chess.com"]
[Date "2024.01.09"]
[Round "10"]
[White "Czerw, Dawid"]
[Black "Mokshanov, Alexey"]
[Result "0-1"]
[Board "79"]
[TimeControl "180+1"]
[WhiteFideId "1145746"]
[BlackFideId "24121657"]
[WhiteElo "2471"]
[BlackElo "2607"]
[WhiteTeam "POL"]
[BlackTeam "RUS"]
[WhiteClock "0:00:21"]
[BlackClock "0:00:09"]

1. e4 {[%clk 0:03:00]}  e6 {[%clk 0:02:31]} 2. b3 {[%clk 0:03:00]}  d5 {[%clk 0:02:30]} 3. Bb2 {[%clk 0:02:59]}  Nf6 {[%clk 0:02:31]} 4. e5 {[%clk 0:02:59]}  Nfd7 {[%clk 0:02:31]} 5. d4 {[%clk 0:03:00]}  c5 {[%clk 0:02:31]} 6. c3 {[%clk 0:03:00]}  Nc6 {[%clk 0:02:32]} 7. Nf3 {[%clk 0:03:00]}  Qb6 {[%clk 0:02:20]} 8. Nbd2 {[%clk 0:02:59]}  a5 {[%clk 0:02:15]} 9. Bd3 {[%clk 0:02:54]}  a4 {[%clk 0:02:14]} 10. O-O {[%clk 0:02:51]}  a3 {[%clk 0:01:46]} 11. Bc1 {[%clk 0:02:49]}  cxd4 {[%clk 0:01:40]} 12. c4 {[%clk 0:02:49]}  Nb4 {[%clk 0:01:31]} 13. Bb1 {[%clk 0:02:48]}  Bc5 {[%clk 0:01:08]} 14. cxd5 {[%clk 0:02:42]}  Nxd5 {[%clk 0:01:07]} 15. Nc4 {[%clk 0:02:43]}  Qc7 {[%clk 0:01:07]} 16. Re1 {[%clk 0:02:33]}  Nc3 {[%clk 0:01:05]} 17. Qd3 {[%clk 0:02:28]}  b5 {[%clk 0:01:02]} 18. Nd6+ {[%clk 0:02:17]}  Bxd6 {[%clk 0:01:01]} 19. exd6 {[%clk 0:02:18]}  Qxd6 {[%clk 0:00:58]} 20. Nxd4 {[%clk 0:02:17]}  Nxb1 {[%clk 0:00:55]} 21. Rxb1 {[%clk 0:02:18]}  O-O {[%clk 0:00:53]} 22. Qe3 {[%clk 0:01:54]}  Bb7 {[%clk 0:00:41]} 23. Bd2 {[%clk 0:01:43]}  Nf6 {[%clk 0:00:35]} 24. f3 {[%clk 0:01:30]}  Rfd8 {[%clk 0:00:34]} 25. Bc3 {[%clk 0:01:15]}  Nd5 {[%clk 0:00:18]} 26. Nxb5 {[%clk 0:01:14]}  Qc6 {[%clk 0:00:19]} 27. Qe5 {[%clk 0:00:43]}  Nxc3 {[%clk 0:00:09]} 28. Nxc3 {[%clk 0:00:41]}  Rd2 {[%clk 0:00:09]} 29. h4 {[%clk 0:00:28]}  Rxg2+ {[%clk 0:00:08]} 30. Kxg2 {[%clk 0:00:20]}  Qxf3+ {[%clk 0:00:09]} 31. Kg1 {[%clk 0:00:21]}  Qg2# {[%clk 0:00:09]} 0-1

[Event "January 9 Late 2024"]
[Site "https://www.chess.com"]
[Date "2024.01.09"]
[Round "10"]
[White "Nilsen, Tobias Lang"]
[Black "Espinoza Villanueva, Rodrigo"]
[Result "0-1"]
[Board "80"]
[TimeControl "180+1"]
[WhiteFideId "1521624"]
[BlackFideId "5140188"]
[WhiteElo "2474"]
[BlackElo "2588"]
[WhiteTeam "NOR"]
[BlackTeam "MEX"]
[WhiteClock "0:00:18"]
[BlackClock "0:01:28"]

1. e4 {[%clk 0:03:00]}  e5 {[%clk 0:02:52]} 2. Nf3 {[%clk 0:03:01]}  Nc6 {[%clk 0:02:52]} 3. Bc4 {[%clk 0:03:00]}  Nf6 {[%clk 0:02:51]} 4. d3 {[%clk 0:03:01]}  d5 {[%clk 0:02:49]} 5. exd5 {[%clk 0:03:00]}  Nxd5 {[%clk 0:02:50]} 6. O-O {[%clk 0:03:01]}  Be7 {[%clk 0:02:48]} 7. Re1 {[%clk 0:03:01]}  f6 {[%clk 0:02:46]} 8. d4 {[%clk 0:02:59]}  Bg4 {[%clk 0:02:35]} 9. dxe5 {[%clk 0:02:57]}  Ndb4 {[%clk 0:02:29]} 10. Qxd8+ {[%clk 0:02:42]}  Rxd8 {[%clk 0:02:25]} 11. exf6 {[%clk 0:02:42]}  gxf6 {[%clk 0:02:21]} 12. Na3 {[%clk 0:02:38]}  Bxf3 {[%clk 0:02:21]} 13. gxf3 {[%clk 0:02:38]}  Nd4 {[%clk 0:02:20]} 14. Re4 {[%clk 0:02:07]}  Nxf3+ {[%clk 0:02:10]} 15. Kg2 {[%clk 0:02:05]}  Ne5 {[%clk 0:02:10]} 16. Be2 {[%clk 0:02:01]}  c5 {[%clk 0:02:04]} 17. c3 {[%clk 0:01:58]}  Nbd3 {[%clk 0:01:59]} 18. Bh6 {[%clk 0:01:23]}  Rg8+ {[%clk 0:01:55]} 19. Kf1 {[%clk 0:01:22]}  Kf7 {[%clk 0:01:52]} 20. Bh5+ {[%clk 0:01:12]}  Ke6 {[%clk 0:01:52]} 21. Nc2 {[%clk 0:00:56]}  f5 {[%clk 0:01:49]} 22. Re2 {[%clk 0:00:52]}  Kf6 {[%clk 0:01:45]} 23. Ne1 {[%clk 0:00:35]}  c4 {[%clk 0:01:39]} 24. Nf3 {[%clk 0:00:34]}  Bd6 {[%clk 0:01:33]} 25. Nxe5 {[%clk 0:00:25]}  Bxe5 {[%clk 0:01:34]} 26. f4 {[%clk 0:00:20]}  Bxf4 {[%clk 0:01:33]} 27. b3 {[%clk 0:00:18]}  Bxh6 {[%clk 0:01:28]} 0-1

[Event "January 9 Late 2024"]
[Site "https://www.chess.com"]
[Date "2024.01.09"]
[Round "10"]
[White "Yagupov, Igor"]
[Black "Krzywda, Andrzej"]
[Result "1-0"]
[Board "84"]
[TimeControl "180+1"]
[WhiteFideId "4113632"]
[BlackFideId "1114565"]
[WhiteElo "2569"]
[BlackElo "2424"]
[WhiteTeam "RUS"]
[BlackTeam "POL"]
[WhiteClock "0:00:09"]
[BlackClock "0:00:16"]

1. Nf3 {[%clk 0:03:00]}  d5 {[%clk 0:02:59]} 2. d4 {[%clk 0:02:59]}  Nf6 {[%clk 0:02:57]} 3. c4 {[%clk 0:02:59]}  dxc4 {[%clk 0:02:58]} 4. e3 {[%clk 0:02:58]}  e6 {[%clk 0:02:58]} 5. Bxc4 {[%clk 0:02:58]}  c5 {[%clk 0:02:59]} 6. O-O {[%clk 0:02:58]}  Nc6 {[%clk 0:02:59]} 7. Qe2 {[%clk 0:02:55]}  a6 {[%clk 0:02:58]} 8. Rd1 {[%clk 0:02:53]}  b5 {[%clk 0:02:51]} 9. dxc5 {[%clk 0:02:49]}  Qc7 {[%clk 0:02:52]} 10. Bb3 {[%clk 0:02:48]}  Bxc5 {[%clk 0:02:52]} 11. Nc3 {[%clk 0:02:47]}  Bd6 {[%clk 0:02:44]} 12. e4 {[%clk 0:02:39]}  Ne5 {[%clk 0:02:38]} 13. Nd4 {[%clk 0:02:27]}  Bc5 {[%clk 0:01:36]} 14. Bf4 {[%clk 0:02:24]}  Nfd7 {[%clk 0:01:37]} 15. Rac1 {[%clk 0:02:20]}  Qb6 {[%clk 0:01:36]} 16. Be3 {[%clk 0:01:39]}  Bb7 {[%clk 0:01:29]} 17. f3 {[%clk 0:01:38]}  O-O {[%clk 0:01:24]} 18. Nc2 {[%clk 0:01:30]}  Rfd8 {[%clk 0:01:19]} 19. a3 {[%clk 0:01:19]}  Rac8 {[%clk 0:01:16]} 20. Kh1 {[%clk 0:01:15]}  Qc7 {[%clk 0:01:08]} 21. Ba2 {[%clk 0:00:59]}  Bd6 {[%clk 0:00:57]} 22. Nd4 {[%clk 0:00:53]}  Qb8 {[%clk 0:00:52]} 23. Bg5 {[%clk 0:00:46]}  Re8 {[%clk 0:00:48]} 24. Be3 {[%clk 0:00:43]}  Nc4 {[%clk 0:00:47]} 25. Bxc4 {[%clk 0:00:42]}  Rxc4 {[%clk 0:00:48]} 26. Bg1 {[%clk 0:00:41]}  Be5 {[%clk 0:00:41]} 27. Nb3 {[%clk 0:00:36]}  Bxc3 {[%clk 0:00:34]} 28. Rxd7 {[%clk 0:00:32]}  Bf6 {[%clk 0:00:32]} 29. Rxc4 {[%clk 0:00:30]}  bxc4 {[%clk 0:00:33]} 30. Na5 {[%clk 0:00:27]}  Ba8 {[%clk 0:00:28]} 31. Nxc4 {[%clk 0:00:25]}  Qb5 {[%clk 0:00:28]} 32. Rd2 {[%clk 0:00:21]}  Rc8 {[%clk 0:00:28]} 33. Nd6 {[%clk 0:00:19]}  Qxe2 {[%clk 0:00:26]} 34. Rxe2 {[%clk 0:00:18]}  Rc1 {[%clk 0:00:27]} 35. e5 {[%clk 0:00:17]}  Bd8 {[%clk 0:00:23]} 36. Ne4 {[%clk 0:00:15]}  Bb6 {[%clk 0:00:21]} 37. Nf2 {[%clk 0:00:15]}  Bd5 {[%clk 0:00:20]} 38. h4 {[%clk 0:00:13]}  h5 {[%clk 0:00:20]} 39. Kh2 {[%clk 0:00:13]}  Rb1 {[%clk 0:00:18]} 40. Nh3 {[%clk 0:00:12]}  Bxg1+ {[%clk 0:00:13]} 41. Nxg1 {[%clk 0:00:12]}  Bb3 {[%clk 0:00:12]} 42. Nh3 {[%clk 0:00:11]}  a5 {[%clk 0:00:12]} 43. Nf4 {[%clk 0:00:10]}  g6 {[%clk 0:00:13]} 44. Rd2 {[%clk 0:00:09]}  a4 {[%clk 0:00:13]} 45. Nh3 {[%clk 0:00:09]}  Bd5 {[%clk 0:00:12]} 46. Ng5 {[%clk 0:00:09]}  Kg7 {[%clk 0:00:12]} 47. Rc2 {[%clk 0:00:08]}  Re1 {[%clk 0:00:11]} 48. Rc7 {[%clk 0:00:08]}  Re2 {[%clk 0:00:10]} 49. Rxf7+ {[%clk 0:00:07]}  Kg8 {[%clk 0:00:10]} 50. Rf6 {[%clk 0:00:06]}  Rxb2 {[%clk 0:00:09]} 51. Rxg6+ {[%clk 0:00:04]}  Kf8 {[%clk 0:00:10]} 52. Nxe6+ {[%clk 0:00:02]}  Kf7 {[%clk 0:00:09]} 53. Rf6+ {[%clk 0:00:03]}  Ke7 {[%clk 0:00:09]} 54. Nf4 {[%clk 0:00:02]}  Bb3 {[%clk 0:00:08]} 55. Ng6+ {[%clk 0:00:03]}  Kd7 {[%clk 0:00:08]} 56. Rd6+ {[%clk 0:00:02]}  Ke8 {[%clk 0:00:08]} 57. e6 {[%clk 0:00:02]}  Re2 {[%clk 0:00:07]} 58. e7 {[%clk 0:00:02]}  Kf7 {[%clk 0:00:05]} 59. Rd8 {[%clk 0:00:01]}  Rxe7 {[%clk 0:00:05]} 60. Nxe7 {[%clk 0:00:01]}  Kxe7 {[%clk 0:00:06]} 61. Rd4 {[%clk 0:00:01]}  Kf6 {[%clk 0:00:06]} 62. Rb4 {[%clk 0:00:02]}  Kf5 {[%clk 0:00:06]} 63. Kg3 {[%clk 0:00:03]}  Ke5 {[%clk 0:00:06]} 64. Kf2 {[%clk 0:00:04]}  Kf5 {[%clk 0:00:06]} 65. g4+ {[%clk 0:00:05]}  hxg4 {[%clk 0:00:06]} 66. fxg4+ {[%clk 0:00:05]}  Kg6 {[%clk 0:00:07]} 67. Kg3 {[%clk 0:00:06]}  Kh6 {[%clk 0:00:07]} 68. Kf4 {[%clk 0:00:06]}  Kg6 {[%clk 0:00:08]} 69. Rb6+ {[%clk 0:00:06]}  Kf7 {[%clk 0:00:09]} 70. Kg5 {[%clk 0:00:07]}  Kg7 {[%clk 0:00:10]} 71. h5 {[%clk 0:00:07]}  Kf8 {[%clk 0:00:11]} 72. Kf6 {[%clk 0:00:06]}  Ke8 {[%clk 0:00:11]} 73. g5 {[%clk 0:00:06]}  Kd8 {[%clk 0:00:11]} 74. h6 {[%clk 0:00:07]}  Kc7 {[%clk 0:00:12]} 75. Rb4 {[%clk 0:00:07]}  Kd6 {[%clk 0:00:12]} 76. g6 {[%clk 0:00:07]}  Bc2 {[%clk 0:00:11]} 77. h7 {[%clk 0:00:08]}  Bxg6 {[%clk 0:00:12]} 78. Kxg6 {[%clk 0:00:08]}  Kc5 {[%clk 0:00:12]} 79. h8=Q {[%clk 0:00:08]}  Kd5 {[%clk 0:00:13]} 80. Qd4+ {[%clk 0:00:08]}  Kc6 {[%clk 0:00:14]} 81. Rb6+ {[%clk 0:00:08]}  Kc7 {[%clk 0:00:15]} 82. Qd6+ {[%clk 0:00:08]}  Kc8 {[%clk 0:00:16]} 83. Rb8# {[%clk 0:00:09]} 1-0

[Event "January 9 Late 2024"]
[Site "https://www.chess.com"]
[Date "2024.01.10"]
[Round "10"]
[White "Toktomushev, Teimur"]
[Black "Stopa, Jacek"]
[Result "0-1"]
[Board "88"]
[TimeControl "180+1"]
[WhiteFideId "14176726"]
[BlackFideId "1119591"]
[WhiteElo "2435"]
[BlackElo "2766"]
[WhiteTeam "UKR"]
[BlackTeam "POL"]
[WhiteClock "0:00:01"]
[BlackClock "0:00:58"]

1. d4 {[%clk 0:03:00]}  f5 {[%clk 0:03:00]} 2. g3 {[%clk 0:02:57]}  Nf6 {[%clk 0:02:59]} 3. Bg2 {[%clk 0:02:58]}  e6 {[%clk 0:03:00]} 4. Nf3 {[%clk 0:02:59]}  Be7 {[%clk 0:03:00]} 5. O-O {[%clk 0:02:59]}  O-O {[%clk 0:03:01]} 6. c4 {[%clk 0:02:56]}  d6 {[%clk 0:03:01]} 7. Nc3 {[%clk 0:02:42]}  Ne4 {[%clk 0:03:01]} 8. Nxe4 {[%clk 0:02:43]}  fxe4 {[%clk 0:03:01]} 9. Nd2 {[%clk 0:02:43]}  d5 {[%clk 0:03:02]} 10. f3 {[%clk 0:02:42]}  dxc4 {[%clk 0:02:59]} 11. Nxe4 {[%clk 0:02:28]}  Nc6 {[%clk 0:02:53]} 12. Be3 {[%clk 0:02:27]}  b5 {[%clk 0:02:39]} 13. Nc3 {[%clk 0:01:30]}  Rb8 {[%clk 0:02:37]} 14. a3 {[%clk 0:01:30]}  Na5 {[%clk 0:02:31]} 15. Qc2 {[%clk 0:01:24]}  a6 {[%clk 0:02:24]} 16. Rad1 {[%clk 0:01:21]}  Bb7 {[%clk 0:02:24]} 17. Bf2 {[%clk 0:01:10]}  Qe8 {[%clk 0:02:22]} 18. d5 {[%clk 0:00:53]}  Bf6 {[%clk 0:02:13]} 19. e4 {[%clk 0:00:44]}  Nb3 {[%clk 0:02:08]} 20. dxe6 {[%clk 0:00:22]}  Qxe6 {[%clk 0:02:07]} 21. Nd5 {[%clk 0:00:19]}  Bd8 {[%clk 0:01:58]} 22. f4 {[%clk 0:00:14]}  c6 {[%clk 0:01:50]} 23. Ne3 {[%clk 0:00:11]}  Bb6 {[%clk 0:01:47]} 24. Nf5 {[%clk 0:00:05]}  Bxf2+ {[%clk 0:01:42]} 25. Rxf2 {[%clk 0:00:06]}  Rbd8 {[%clk 0:01:39]} 26. Rff1 {[%clk 0:00:06]}  c5 {[%clk 0:01:34]} 27. Rxd8 {[%clk 0:00:04]}  Rxd8 {[%clk 0:01:35]} 28. Rd1 {[%clk 0:00:04]}  Nd4 {[%clk 0:01:35]} 29. Qf2 {[%clk 0:00:04]}  Qb6 {[%clk 0:01:28]} 30. e5 {[%clk 0:00:02]}  Nxf5 {[%clk 0:01:21]} 31. Rxd8+ {[%clk 0:00:01]}  Qxd8 {[%clk 0:01:21]} 32. Bxb7 {[%clk 0:00:02]}  Qd1+ {[%clk 0:01:21]} 33. Kg2 {[%clk 0:00:03]}  Nd4 {[%clk 0:01:19]} 34. Bd5+ {[%clk 0:00:02]}  Kf8 {[%clk 0:01:19]} 35. e6 {[%clk 0:00:03]}  Ke7 {[%clk 0:01:19]} 36. f5 {[%clk 0:00:03]}  Qg4 {[%clk 0:01:11]} 37. h3 {[%clk 0:00:02]}  Qxf5 {[%clk 0:01:11]} 38. Qxf5 {[%clk 0:00:01]}  Nxf5 {[%clk 0:01:11]} 39. Bb7 {[%clk 0:00:02]}  a5 {[%clk 0:01:07]} 40. Bc8 {[%clk 0:00:02]}  b4 {[%clk 0:01:06]} 41. axb4 {[%clk 0:00:02]}  cxb4 {[%clk 0:01:06]} 42. Kf3 {[%clk 0:00:03]}  c3 {[%clk 0:01:01]} 43. bxc3 {[%clk 0:00:04]}  b3 {[%clk 0:01:02]} 44. Ba6 {[%clk 0:00:03]}  a4 {[%clk 0:01:00]} 45. Bb5 {[%clk 0:00:02]}  a3 {[%clk 0:00:59]} 46. Bc4 {[%clk 0:00:01]}  a2 {[%clk 0:00:58]} 0-1